fUSD/lending_fUSD_20240215
["ID","MTS","AMOUNT","RATE_DAILY","PERIOD"]
[314134802,1708018238778,-151.0,0.00037972,30]
[314134803,1708018238788,-200.0,0.00037987,2]
[314134804,1708018238797,-4416.78649288,0.00037988,11]
[314134805,1708018238807,-580.75485731,0.00037999,30]
[314134806,1708018238816,-100000.0,0.00038,8]
[314134807,1708018238826,-35501.26,0.00038,30]
[314134815,1708018238978,-4000.0,0.00038,6]
[314134817,1708018238992,-131495.65,0.00038,30]
[314134819,1708018239001,-35501.26,0.00038,30]
[314134821,1708018239011,-200000.0,0.00038,7]
[314134823,1708018239020,-119757.65359215,0.00038,7]
[314134825,1708018239030,-187.90778278,0.00038,2]
[314134827,1708018239039,-207.07823707,0.00038,2]
[314134829,1708018239049,-4825.51752552,0.00038,2]
[314134831,1708018239062,-3997.01834565,0.00038,2]
[314134832,1708018239071,-2024.2867352,0.00038009,2]
[314134833,1708018239082,-543.67,0.0003802,2]
[314134835,1708018239091,-25089.93795281,0.00038109,2]
[314134837,1708018239101,-1355.68358969,0.00038117,2]
[314134839,1708018239111,-1315.40695577,0.00038141,2]
[314134841,1708018239120,-200.0,0.00038142,10]
[314134843,1708018239129,-4416.78649288,0.00038159,11]
[314134845,1708018239139,-152.85463446,0.00038188,2]
[314134847,1708018239150,-543.67,0.00038212,2]
[314134849,1708018239159,-20000.0,0.00038256,2]
[314134851,1708018239169,-1000.0,0.00038256,2]
[314134853,1708018239178,-1106.4153,0.00038256,3]
[314134855,1708018239188,-193.80161087,0.00038256,2]
[314134857,1708018239196,-543.8,0.00038269,2]
[314134859,1708018239206,-2000.0,0.00038291,2]
[314134861,1708018239215,-200.0,0.00038291,2]
[314134863,1708018239226,-2000.0,0.00038291,2]
[314134865,1708018239235,-200.0,0.00038291,2]
[314134867,1708018239244,-2000.0,0.00038291,2]
[314134869,1708018239252,-200.0,0.00038291,2]
[314134871,1708018239261,-200.0,0.00038291,2]
[314134873,1708018239271,-919.92911392,0.00038293,29]
[314134875,1708018239280,-1000.0,0.000383,7]
[314134877,1708018239290,-1011.0,0.000383,7]
[314134879,1708018239299,-857.0,0.00038313,2]
[314134881,1708018239308,-1004.0,0.00038313,2]
[314134883,1708018239317,-237.0,0.00038313,2]
[314134885,1708018239327,-429.0,0.00038313,2]
[314134887,1708018239336,-343.0,0.00038313,2]
[314134889,1708018239345,-150.0,0.00038313,2]
[314134891,1708018239354,-1138.0,0.00038313,2]
[314134892,1708018239364,-321.0,0.00038313,2]
[314134893,1708018239373,-454.0,0.00038313,2]
[314134894,1708018239383,-150.0,0.00038313,2]
[314134895,1708018239392,-150.0,0.00038313,2]
[314134896,1708018239401,-2926.0,0.00038313,2]
[314134897,1708018239410,-19841.0,0.00038313,2]
[314134898,1708018239419,-2289.0,0.00038313,2]
[314134899,1708018239429,-2834.0,0.00038313,2]
[314134900,1708018239439,-1369.0,0.00038313,2]
[314134901,1708018239449,-8162.0,0.00038313,2]
[314134902,1708018239458,-4059.0,0.00038313,2]
[314134903,1708018239467,-953.0,0.00038313,2]
[314134904,1708018239477,-1864.0,0.00038313,2]
[314134905,1708018239486,-841.0,0.00038313,2]
[314134906,1708018239495,-1037.0,0.00038313,2]
[314134907,1708018239504,-1948.0,0.00038313,2]
[314134908,1708018239513,-1231.0,0.00038313,2]
[314134909,1708018239522,-200.0,0.0003832,3]
[314134910,1708018239531,-800.0,0.0003832,5]
[314134911,1708018239540,-200.0,0.0003832,10]
[314134912,1708018239549,-500.0,0.0003832,10]
[314134913,1708018239559,-4416.78649288,0.0003833,11]
[314134914,1708018239568,-257.39,0.00038352,2]
[314134915,1708018239577,-167.0,0.00038353,7]
[314134916,1708018239586,-184.70027688,0.00038353,2]
[314134917,1708018239595,-150.0,0.00038355,30]
[314134918,1708018239606,-155.0,0.00038355,7]
[314134919,1708018239616,-500.0,0.00038356,7]
[314134920,1708018239625,-507.15126356,0.00038356,7]
[314134921,1708018239634,-358.62920343,0.00038356,7]
[314134922,1708018239643,-502.14347219,0.00038356,7]
[314134923,1708018239652,-510.15589135,0.00038356,15]
[314134924,1708018239661,-506.33687183,0.00038356,7]
[314134925,1708018239670,-517.45001235,0.00038356,7]
[314134926,1708018239679,-500.0,0.00038356,7]
[314134927,1708018239688,-502.82835903,0.00038356,7]
[314134928,1708018239697,-1001.65419782,0.00038356,2]
[314134929,1708018239706,-503.72425896,0.00038356,7]
[314134930,1708018239715,-500.0,0.00038356,7]
[314134931,1708018239726,-500.0,0.00038356,7]
[314134932,1708018239735,-527.41184123,0.00038356,7]
[314134933,1708018239745,-530.26037459,0.00038356,7]
[314134934,1708018239755,-538.46031846,0.00038356,7]
[314134935,1708018239764,-500.0,0.00038356,7]
[314134936,1708018239774,-500.0,0.00038356,7]
[314134937,1708018239784,-552.25672863,0.00038356,7]
[314134938,1708018239793,-500.0,0.00038356,7]
[314134939,1708018239802,-527.85529409,0.00038356,7]
[314134940,1708018239812,-503.144189,0.00038356,7]
[314134941,1708018239822,-560.99168132,0.00038356,7]
[314134942,1708018239831,-500.0,0.00038356,7]
[314134943,1708018239840,-508.5846268,0.00038356,7]
[314134944,1708018239850,-500.0,0.00038356,7]
[314134945,1708018239859,-500.0,0.00038356,7]
[314134946,1708018239868,-500.0,0.00038356,7]
[314134947,1708018239878,-500.0,0.00038356,7]
[314134948,1708018239887,-517.91534765,0.00038356,7]
[314134949,1708018239896,-500.0,0.00038356,7]
[314134950,1708018239905,-505.9135383,0.00038356,7]
[314134951,1708018239913,-561.92316619,0.00038356,7]
[314134952,1708018239922,-500.0,0.00038356,7]
[314134953,1708018239931,-432.92666658,0.00038356,7]
[314134954,1708018239940,-530.80396957,0.00038356,7]
[314134955,1708018239949,-531.70614456,0.00038356,7]
[314134956,1708018239959,-500.0,0.00038356,7]
[314134957,1708018239968,-316.34512996,0.00038356,2]
[314134958,1708018239978,-509.65303658,0.00038356,7]
[314134959,1708018239988,-521.02964723,0.00038356,7]
[314134960,1708018239997,-500.0,0.00038356,7]
[314134961,1708018240007,-500.0,0.00038356,7]
[314134962,1708018240017,-500.0,0.00038356,7]
[314134963,1708018240027,-500.0,0.00038356,7]
[314134964,1708018240036,-500.0,0.00038356,7]
[314134965,1708018240046,-614.80715465,0.00038356,7]
[314134966,1708018240057,-532.91668463,0.00038356,7]
[314134967,1708018240067,-500.0,0.00038356,7]
[314134968,1708018240076,-500.0,0.00038356,7]
[314134969,1708018240085,-610.038738,0.00038356,7]
[314134970,1708018240094,-500.0,0.00038356,7]
[314134971,1708018240104,-500.0,0.00038356,7]
[314134972,1708018240113,-444.8112171,0.00038356,7]
[314134973,1708018240122,-500.0,0.00038356,7]
[314134974,1708018240132,-500.0,0.00038356,7]
[314134975,1708018240143,-500.0,0.00038356,7]
[314134976,1708018240153,-517.53140936,0.00038356,7]
[314134977,1708018240162,-691.53,0.00038356,7]
[314134978,1708018240172,-500.0,0.00038356,7]
[314134979,1708018240181,-500.0,0.00038356,7]
[314134980,1708018240191,-500.0,0.00038356,7]
[314134981,1708018240200,-500.0,0.00038356,7]
[314134982,1708018240209,-530.95520748,0.00038356,7]
[314134983,1708018240218,-500.0,0.00038356,7]
[314134984,1708018240228,-500.0,0.00038356,7]
[314134985,1708018240238,-512.62,0.00038356,2]
[314134986,1708018240247,-500.0,0.00038356,7]
[314134987,1708018240256,-500.0,0.00038356,7]
[314134988,1708018240266,-298.44530474,0.00038356,7]
[314134989,1708018240275,-500.0,0.00038356,7]
[314134990,1708018240284,-500.0,0.00038356,7]
[314134991,1708018240294,-500.0,0.00038356,7]
[314134992,1708018240303,-328.21678685,0.00038356,7]
[314134993,1708018240312,-639.82381525,0.00038356,7]
[314134994,1708018240322,-500.0,0.00038356,7]
[314134995,1708018240331,-500.0,0.00038356,7]
[314134996,1708018240341,-500.0,0.00038356,7]
[314134997,1708018240350,-500.0,0.00038356,7]
[314134998,1708018240360,-501.94663435,0.00038356,7]
[314134999,1708018240369,-500.0,0.00038356,7]
[314135000,1708018240379,-500.0,0.00038356,7]
[314135001,1708018240388,-500.0,0.00038356,7]
[314135002,1708018240397,-500.0,0.00038356,7]
[314135003,1708018240406,-520.82344082,0.00038356,7]
[314135004,1708018240415,-500.0,0.00038356,7]
[314135005,1708018240424,-535.77197533,0.00038356,7]
[314135006,1708018240433,-440.88722607,0.00038356,7]
[314135007,1708018240443,-500.0,0.00038356,7]
[314135008,1708018240452,-500.0,0.00038356,7]
[314135009,1708018240462,-500.0,0.00038356,7]
[314135010,1708018240473,-1234.61,0.00038356,7]
[314135011,1708018240482,-500.0,0.00038356,7]
[314135012,1708018240491,-500.0,0.00038356,2]
[314135013,1708018240500,-500.0,0.00038356,7]
[314135014,1708018240509,-500.0,0.00038356,7]
[314135015,1708018240518,-503.87210258,0.00038356,7]
[314135016,1708018240527,-511.9605064,0.00038356,7]
[314135017,1708018240536,-494.56295727,0.00038356,7]
[314135018,1708018240545,-500.0,0.00038356,7]
[314135019,1708018240555,-532.78806848,0.00038356,7]
[314135020,1708018240565,-500.70934394,0.00038356,7]
[314135021,1708018240575,-515.26453412,0.00038356,7]
[314135022,1708018240584,-500.0,0.00038356,7]
[314135023,1708018240594,-500.0,0.00038356,7]
[314135024,1708018240603,-500.36463546,0.00038356,7]
[314135025,1708018240613,-211.74714281,0.00038356,7]
[314135026,1708018240622,-648.81529883,0.00038356,7]
[314135027,1708018240633,-500.0,0.00038356,7]
[314135028,1708018240642,-500.0,0.00038356,7]
[314135029,1708018240652,-508.67881807,0.00038356,7]
[314135030,1708018240661,-500.0,0.00038356,7]
[314135031,1708018240672,-500.0,0.00038356,7]
[314135032,1708018240681,-500.0,0.00038356,7]
[314135033,1708018240691,-500.0,0.00038356,7]
[314135034,1708018240700,-500.0,0.00038356,7]
[314135035,1708018240710,-502.69637611,0.00038356,7]
[314135036,1708018240719,-229.28974138,0.00038356,7]
[314135037,1708018240729,-500.0,0.00038356,7]
[314135038,1708018240739,-500.0,0.00038356,7]
[314135039,1708018240748,-500.0,0.00038356,7]
[314135040,1708018240757,-579.35220245,0.00038356,7]
[314135041,1708018240766,-500.0,0.00038356,7]
[314135042,1708018240776,-523.24252356,0.00038356,7]
[314135043,1708018240785,-500.0,0.00038356,7]
[314135044,1708018240794,-500.0,0.00038356,7]
[314135045,1708018240804,-500.0,0.00038356,7]
[314135046,1708018240813,-500.0,0.00038356,7]
[314135047,1708018240823,-500.0,0.00038356,7]
[314135048,1708018240832,-762.0,0.00038356,7]
[314135049,1708018240841,-525.72661641,0.00038356,7]
[314135050,1708018240850,-500.0,0.00038356,7]
[314135051,1708018240859,-164.0244594,0.00038356,7]
[314135052,1708018240869,-500.0,0.00038356,7]
[314135053,1708018240878,-514.02981637,0.00038356,7]
[314135054,1708018240888,-395.51371809,0.00038356,7]
[314135055,1708018240897,-500.0,0.00038356,7]
[314135056,1708018240907,-500.0,0.00038356,7]
[314135057,1708018240917,-507.0978988,0.00038356,7]
[314135058,1708018240926,-504.0543582,0.00038356,7]
[314135059,1708018240936,-500.0,0.00038356,7]
[314135060,1708018240945,-500.0,0.00038356,7]
[314135061,1708018240955,-500.0,0.00038356,7]
[314135062,1708018240964,-504.9352676,0.00038356,7]
[314135063,1708018240976,-500.0,0.00038356,7]
[314135064,1708018240985,-500.0,0.00038356,7]
[314135065,1708018240996,-502.03975329,0.00038356,7]
[314135066,1708018241006,-509.07169119,0.00038356,7]
[314135067,1708018241016,-500.0,0.00038356,7]
[314135068,1708018241026,-581.1237893,0.00038356,7]
[314135069,1708018241035,-500.0,0.00038356,7]
[314135070,1708018241046,-168.60828901,0.00038356,7]
[314135071,1708018241057,-528.61098883,0.00038356,7]
[314135072,1708018241068,-500.0,0.00038356,7]
[314135073,1708018241077,-500.0,0.00038356,7]
[314135074,1708018241087,-500.0,0.00038356,7]
[314135075,1708018241098,-500.0,0.00038356,7]
[314135076,1708018241108,-500.0,0.00038356,7]
[314135077,1708018241118,-500.0,0.00038356,7]
[314135078,1708018241129,-586.85,0.00038356,7]
[314135079,1708018241140,-500.0,0.00038356,7]
[314135080,1708018241273,-500.0,0.00038356,7]
[314135081,1708018241284,-500.0,0.00038356,7]
[314135082,1708018241294,-500.0,0.00038356,2]
[314135083,1708018241303,-500.0,0.00038356,7]
[314135084,1708018241313,-500.0,0.00038356,7]
[314135085,1708018241323,-500.0,0.00038356,7]
[314135086,1708018241332,-536.18841914,0.00038356,7]
[314135087,1708018241342,-500.0,0.00038356,7]
[314135088,1708018241351,-541.6326039,0.00038356,7]
[314135089,1708018241361,-500.0,0.00038356,7]
[314135090,1708018241370,-500.0,0.00038356,7]
[314135091,1708018241380,-551.81181905,0.00038356,7]
[314135092,1708018241389,-500.0,0.00038356,7]
[314135093,1708018241399,-500.0,0.00038356,7]
[314135094,1708018241409,-527.26066638,0.00038356,7]
[314135095,1708018241418,-500.0,0.00038356,7]
[314135096,1708018241428,-500.0,0.00038356,7]
[314135097,1708018241437,-509.65899125,0.00038356,7]
[314135098,1708018241447,-545.06098541,0.00038356,7]
[314135099,1708018241457,-500.0,0.00038356,7]
[314135100,1708018241466,-500.0,0.00038356,7]
[314135101,1708018241480,-500.0,0.00038356,7]
[314135102,1708018241490,-500.0,0.00038356,7]
[314135103,1708018241499,-500.0,0.00038356,7]
[314135104,1708018241508,-500.0,0.00038356,7]
[314135105,1708018241517,-500.0,0.00038356,7]
[314135106,1708018241526,-500.0,0.00038356,7]
[314135107,1708018241536,-500.0,0.00038356,7]
[314135108,1708018241545,-500.0,0.00038356,7]
[314135109,1708018241555,-500.0,0.00038356,7]
[314135110,1708018241564,-507.93612907,0.00038356,7]
[314135111,1708018241574,-208.1880274,0.00038356,7]
[314135112,1708018241583,-514.58694246,0.00038356,7]
[314135113,1708018241592,-529.97437915,0.00038356,7]
[314135114,1708018241601,-500.0,0.00038356,7]
[314135115,1708018241610,-500.0,0.00038356,7]
[314135116,1708018241620,-590.28875665,0.00038356,7]
[314135117,1708018241630,-495.66508323,0.00038356,7]
[314135118,1708018241639,-500.0,0.00038356,7]
[314135119,1708018241648,-500.0,0.00038356,7]
[314135120,1708018241658,-500.0,0.00038356,7]
[314135121,1708018241667,-500.0,0.00038356,7]
[314135122,1708018241676,-500.0,0.00038356,7]
[314135123,1708018241686,-500.0,0.00038356,7]
[314135124,1708018241695,-500.75280323,0.00038356,7]
[314135125,1708018241706,-556.98009417,0.00038356,7]
[314135126,1708018241716,-530.08298305,0.00038356,7]
[314135127,1708018241728,-500.0,0.00038356,7]
[314135128,1708018241737,-331.46940546,0.00038356,7]
[314135129,1708018241745,-500.0,0.00038356,7]
[314135130,1708018241754,-218.6373579,0.00038356,7]
[314135131,1708018241764,-500.0,0.00038356,7]
[314135132,1708018241774,-517.58637176,0.00038356,7]
[314135133,1708018241783,-500.0,0.00038356,7]
[314135134,1708018241792,-500.0,0.00038356,7]
[314135135,1708018241801,-500.0,0.00038356,7]
[314135136,1708018241810,-500.0,0.00038356,7]
[314135137,1708018241819,-500.0,0.00038356,7]
[314135138,1708018241828,-531.5069798,0.00038356,7]
[314135139,1708018241837,-500.0,0.00038356,7]
[314135140,1708018241846,-500.0,0.00038356,7]
[314135141,1708018241855,-500.0,0.00038356,7]
[314135142,1708018241864,-529.96643113,0.00038356,7]
[314135143,1708018241873,-507.92555978,0.00038356,7]
[314135144,1708018241882,-500.0,0.00038356,7]
[314135145,1708018241891,-500.0,0.00038356,7]
[314135146,1708018241900,-500.0,0.00038356,7]
[314135147,1708018241910,-500.0,0.00038356,7]
[314135148,1708018241919,-500.0,0.00038356,7]
[314135149,1708018241928,-500.0,0.00038356,7]
[314135150,1708018241937,-291.71248977,0.00038356,7]
[314135152,1708018241946,-500.0,0.00038356,7]
[314135154,1708018241956,-500.0,0.00038356,7]
[314135155,1708018241965,-623.59,0.00038356,7]
[314135156,1708018241976,-500.0,0.00038356,7]
[314135157,1708018241986,-500.0,0.00038356,7]
[314135158,1708018241996,-500.0,0.00038356,7]
[314135159,1708018242005,-195.9195372,0.00038356,7]
[314135160,1708018242014,-500.0,0.00038356,7]
[314135161,1708018242025,-500.0,0.00038356,7]
[314135162,1708018242034,-500.0,0.00038356,7]
[314135163,1708018242043,-500.0,0.00038356,7]
[314135164,1708018242055,-500.0,0.00038356,7]
[314135165,1708018242064,-500.0,0.00038356,7]
[314135166,1708018242073,-500.0,0.00038356,7]
[314135167,1708018242082,-515.28007742,0.00038356,7]
[314135168,1708018242091,-620.83007686,0.00038356,7]
[314135169,1708018242101,-500.0,0.00038356,7]
[314135170,1708018242111,-500.0,0.00038356,7]
[314135171,1708018242121,-500.0,0.00038356,7]
[314135172,1708018242129,-500.0,0.00038356,7]
[314135173,1708018242139,-500.0,0.00038356,7]
[314135174,1708018242148,-500.0,0.00038356,7]
[314135175,1708018242157,-500.0,0.00038356,7]
[314135176,1708018242166,-500.0,0.00038356,7]
[314135177,1708018242175,-515.62039519,0.00038356,7]
[314135178,1708018242184,-500.0,0.00038356,7]
[314135179,1708018242194,-500.0,0.00038356,7]
[314135180,1708018242203,-500.0,0.00038356,7]
[314135181,1708018242212,-500.0,0.00038356,7]
[314135182,1708018242224,-505.83174968,0.00038356,7]
[314135183,1708018242233,-506.08974472,0.00038356,7]
[314135184,1708018242242,-500.0,0.00038356,7]
[314135185,1708018242251,-517.61509829,0.00038356,7]
[314135186,1708018242260,-500.0,0.00038356,7]
[314135187,1708018242269,-500.0,0.00038356,7]
[314135188,1708018242279,-500.0,0.00038356,7]
[314135189,1708018242288,-500.0,0.00038356,7]
[314135190,1708018242297,-500.0,0.00038356,7]
[314135191,1708018242305,-500.0,0.00038356,7]
[314135192,1708018242314,-520.6975681,0.00038356,7]
[314135193,1708018242324,-529.45038528,0.00038356,7]
[314135194,1708018242333,-500.0,0.00038356,7]
[314135195,1708018242342,-500.0,0.00038356,7]
[314135196,1708018242351,-500.0,0.00038356,7]
[314135197,1708018242360,-529.52202071,0.00038356,7]
[314135198,1708018242369,-538.16379802,0.00038356,7]
[314135199,1708018242379,-500.0,0.00038356,7]
[314135200,1708018242388,-500.0,0.00038356,7]
[314135201,1708018242397,-324.77348488,0.00038356,7]
[314135202,1708018242406,-500.0,0.00038356,7]
[314135203,1708018242415,-500.0,0.00038356,7]
[314135204,1708018242424,-500.0,0.00038356,7]
[314135205,1708018242433,-500.0,0.00038356,7]
[314135206,1708018242443,-184.23076376,0.00038356,7]
[314135207,1708018242452,-581.31223151,0.00038356,7]
[314135208,1708018242461,-642.80876927,0.00038356,7]
[314135209,1708018242470,-500.0,0.00038356,7]
[314135210,1708018242483,-500.0,0.00038356,7]
[314135211,1708018242492,-500.60168088,0.00038356,7]
[314135212,1708018242501,-500.0,0.00038356,7]
[314135213,1708018242510,-500.0,0.00038356,7]
[314135214,1708018242519,-506.4304747,0.00038356,7]
[314135215,1708018242529,-500.0,0.00038356,7]
[314135216,1708018242538,-10000.0,0.00038356,3]
[314135217,1708018242547,-500.0,0.00038356,7]
[314135218,1708018242556,-421.94415422,0.00038356,7]
[314135219,1708018242565,-519.32,0.00038356,2]
[314135220,1708018242574,-500.0,0.00038356,7]
[314135221,1708018242583,-500.0,0.00038356,7]
[314135222,1708018242593,-512.37317452,0.00038356,7]
[314135223,1708018242602,-500.0,0.00038356,7]
[314135224,1708018242611,-541.74316967,0.00038356,7]
[314135225,1708018242620,-500.0,0.00038356,7]
[314135226,1708018242630,-500.0,0.00038356,7]
[314135227,1708018242639,-200.4406791,0.00038356,7]
[314135228,1708018242649,-531.02516051,0.00038356,7]
[314135229,1708018242658,-500.0,0.00038356,7]
[314135230,1708018242667,-500.0,0.00038356,7]
[314135231,1708018242677,-500.0,0.00038356,7]
[314135232,1708018242687,-500.0,0.00038356,7]
[314135233,1708018242697,-500.0,0.00038356,7]
[314135234,1708018242706,-518.07840896,0.00038356,7]
[314135235,1708018242716,-500.0,0.00038356,7]
[314135236,1708018242727,-500.0,0.00038356,7]
[314135237,1708018242737,-503.43068651,0.00038356,7]
[314135238,1708018242746,-790.5,0.00038356,7]
[314135239,1708018242755,-500.0,0.00038356,7]
[314135240,1708018242765,-500.0,0.00038356,7]
[314135241,1708018242774,-500.0,0.00038356,7]
[314135242,1708018242783,-500.0,0.00038356,7]
[314135243,1708018242792,-606.90862971,0.00038356,7]
[314135244,1708018242802,-859.85,0.00038356,7]
[314135245,1708018242811,-500.0,0.00038356,7]
[314135246,1708018242820,-587.17763209,0.00038356,7]
[314135247,1708018242829,-500.0,0.00038356,7]
[314135248,1708018242839,-500.0,0.00038356,7]
[314135249,1708018242848,-500.0,0.00038356,7]
[314135250,1708018242857,-500.72180672,0.00038356,7]
[314135251,1708018242866,-500.0,0.00038356,7]
[314135252,1708018242876,-330.0446414,0.00038356,7]
[314135253,1708018242885,-500.0,0.00038356,7]
[314135254,1708018242894,-500.0,0.00038356,7]
[314135255,1708018242903,-500.0,0.00038356,7]
[314135256,1708018242913,-501.74370972,0.00038356,2]
[314135257,1708018242922,-536.07619213,0.00038356,7]
[314135258,1708018242932,-500.0,0.00038356,7]
[314135259,1708018242941,-526.1433827,0.00038356,7]
[314135260,1708018242950,-500.0,0.00038356,7]
[314135261,1708018242959,-500.0,0.00038356,7]
[314135262,1708018242968,-500.0,0.00038356,7]
[314135263,1708018242978,-500.0,0.00038356,7]
[314135264,1708018242988,-500.0,0.00038356,7]
[314135265,1708018242997,-500.0,0.00038356,7]
[314135266,1708018243006,-500.0,0.00038356,7]
[314135267,1708018243017,-500.0,0.00038356,7]
[314135268,1708018243026,-511.8015236,0.00038356,7]
[314135269,1708018243035,-500.0,0.00038356,7]
[314135270,1708018243044,-500.0,0.00038356,7]
[314135271,1708018243056,-500.0,0.00038356,7]
[314135272,1708018243065,-500.0,0.00038356,7]
[314135273,1708018243074,-503.04245098,0.00038356,7]
[314135274,1708018243083,-500.0,0.00038356,7]
[314135275,1708018243093,-505.17701784,0.00038356,7]
[314135276,1708018243102,-500.0,0.00038356,7]
[314135278,1708018243111,-500.0,0.00038356,7]
[314135280,1708018243120,-500.0,0.00038356,7]
[314135282,1708018243129,-500.0,0.00038356,7]
[314135284,1708018243139,-298.64266051,0.00038356,7]
[314135286,1708018243149,-500.0,0.00038356,7]
[314135288,1708018243161,-500.0,0.00038356,7]
[314135290,1708018243170,-521.47306099,0.00038356,7]
[314135292,1708018243180,-418.64781554,0.00038356,7]
[314135295,1708018243191,-500.0,0.00038356,7]
[314135297,1708018243200,-500.0,0.00038356,7]
[314135299,1708018243209,-500.0,0.00038356,7]
[314135301,1708018243218,-500.0,0.00038356,7]
[314135303,1708018243228,-500.0,0.00038356,7]
[314135304,1708018243237,-382.61088965,0.00038356,7]
[314135320,1708018243357,-500.0,0.00038356,7]
[314135321,1708018243367,-500.0,0.00038356,7]
[314135322,1708018243376,-186.9486333,0.00038356,7]
[314135323,1708018243385,-500.0,0.00038356,7]
[314135324,1708018243394,-500.0,0.00038356,7]
[314135325,1708018243403,-500.0,0.00038356,7]
[314135326,1708018243412,-500.0,0.00038356,7]
[314135327,1708018243421,-500.0,0.00038356,7]
[314135328,1708018243430,-500.0,0.00038356,7]
[314135329,1708018243439,-500.2852837,0.00038356,7]
[314135330,1708018243448,-500.0,0.00038356,7]
[314135331,1708018243458,-500.0,0.00038356,7]
[314135332,1708018243467,-564.89792042,0.00038356,7]
[314135333,1708018243478,-500.0,0.00038356,7]
[314135334,1708018243487,-500.0,0.00038356,7]
[314135335,1708018243496,-532.09146409,0.00038356,7]
[314135336,1708018243506,-539.94177101,0.00038356,7]
[314135337,1708018243517,-500.0,0.00038356,7]
[314135338,1708018243528,-500.0,0.00038356,7]
[314135339,1708018243537,-500.0,0.00038356,7]
[314135340,1708018243549,-500.0,0.00038356,7]
[314135341,1708018243557,-500.0,0.00038356,7]
[314135342,1708018243567,-500.0,0.00038356,7]
[314135343,1708018243576,-500.0,0.00038356,7]
[314135344,1708018243586,-500.0,0.00038356,7]
[314135345,1708018243596,-571.84,0.00038356,7]
[314135346,1708018243606,-500.0,0.00038356,7]
[314135347,1708018243616,-500.0,0.00038356,7]
[314135348,1708018243625,-500.0,0.00038356,7]
[314135349,1708018243638,-514.64612939,0.00038356,7]
[314135350,1708018243648,-500.0,0.00038356,7]
[314135351,1708018243657,-500.0,0.00038356,7]
[314135352,1708018243667,-500.0,0.00038356,7]
[314135353,1708018243677,-500.0,0.00038356,7]
[314135354,1708018243688,-500.0,0.00038356,7]
[314135355,1708018243700,-500.0,0.00038356,7]
[314135356,1708018243711,-500.0,0.00038356,7]
[314135357,1708018243725,-500.0,0.00038356,7]
[314135358,1708018243734,-500.0,0.00038356,7]
[314135359,1708018243743,-500.0,0.00038356,7]
[314135360,1708018243752,-518.20096309,0.00038356,7]
[314135361,1708018243762,-500.0,0.00038356,7]
[314135362,1708018243771,-505.88469598,0.00038356,7]
[314135363,1708018243780,-500.0,0.00038356,7]
[314135364,1708018243789,-500.0,0.00038356,7]
[314135365,1708018243799,-150.0,0.00038356,7]
[314135366,1708018243809,-500.0,0.00038356,7]
[314135367,1708018243818,-500.0,0.00038356,7]
[314135368,1708018243828,-500.0,0.00038356,7]
[314135369,1708018243837,-500.0,0.00038356,7]
[314135370,1708018243847,-500.0,0.00038356,7]
[314135371,1708018243856,-500.0,0.00038356,7]
[314135372,1708018243866,-235.74038992,0.00038356,7]
[314135373,1708018243876,-500.0,0.00038356,7]
[314135374,1708018243885,-535.3391859,0.00038356,7]
[314135375,1708018243894,-500.0,0.00038356,7]
[314135376,1708018243903,-500.0,0.00038356,7]